{"text_format":"3","workbook":"xlsx","n_sheets":1,"sheets":["Протокол ШЭ ВОШ по предмету"],"not_rendered":{"defined_names":1},"read":"whole","date_system":"1900"}

{"sheet":"Протокол ШЭ ВОШ по предмету","index":0,"n_rows":23,"n_cols":15,"rows_kept":23}
["№","Фамилия","Имя","Отчество","Дата рождения","Пол","Участник с ОВЗ (да/нет)","Класс обучения","Класс участия","Балл","Максимальный балл","Статус","Призёр муниципального этапа прошлого года","ФИО учителя","Место работы учителя"]
[1,"Янгиров ","Амир","Азатович","2010-10-13","М","нет",5,5,29,40,"Победитель","нет","Тюленева Елена Александровна","СОШ №15"]
[2,"Масляхова ","Самина ","Ильнуровна","2010-07-31","ж","нет",5,5,23,40,"Призер","нет","Дмитриченко Нина Алексеевна","СОШ №15"]
[3,"Боженова","Анна","Юрьевна","2010-07-06","Ж","нет",5,5,12,40,"участник","нет","Тюленева Елена Александровна","СОШ №15"]
[4,"Мутыгуллин","Марат","Алмазович","2010-04-13","М","нет",5,5,10,40,"участник","нет","Тюленева Елена Александровна","СОШ №15"]
[5,"Хуснутдинов ","Камиль","Сиреневич","2010-12-09","М","нет",5,5,6,40,"участник","нет","Тюленева Елена Александровна","СОШ №15"]
[6,"Шайхисламова ","Диана ","Азатовна","2009-04-27","ж",{"$f":"G10","v":"нет"},{"$f":"H10","v":6},{"$f":"I10","v":6},38,{"$f":"K10","v":40},"Победитель","да","Иванова Альбина Альбертовна","СОШ №15"]
[7,"Рассказчикова ","Ульяна","Сергеевна","2009-03-10","ж","нет",6,6,22,40,"Призер","нет","Алексеенкова Наталья Владимировна","СОШ №15"]
[8,"Хакова ","Арина","Руслановна","2009-09-17","ж","нет",6,6,19,40,"участник","нгет",{"$f":"$N$8","v":"Алексеенкова Наталья Владимировна"},"СОШ №15"]
[9,"Черник","Данил","Сергеевич","2009-06-02","м","нет",6,6,10,40,"участник","нет",{"$f":"$N$8","v":"Алексеенкова Наталья Владимировна"},"СОШ №15"]
[10,"Шаймуратова","Зарина","Ильдусовна","2009-01-22","ж","нет",7,7,29,40,"Победитель","нет","Игнатьева Любовь Ивановна","СОШ №15"]
[11,"Матвеева","Екатерина","Александровна","2008-01-27","ж","нет",7,7,19,40,"участник","нет","Игнатьева Любовь Ивановна","СОШ №15"]
[12,"Смирнова","Дарья","Станиславовна","2007-08-17","ж","нет",8,8,30,40,"Победитель","нет",{"$f":"$N$9","v":"Алексеенкова Наталья Владимировна"},"СОШ №15"]
[13,"Кондрашина ","Яна","Вячеславовна","2007-04-16","ж","нет",8,8,25,40,"Призер","нет",{"$f":"$N$9","v":"Алексеенкова Наталья Владимировна"},"СОШ №15"]
[14,"Салимгариева ","Диана ","Ильназовна","2007-09-21","ж","нет",8,8,23,40,"участник","нет",{"$f":"$N$14","v":"Алексеенкова Наталья Владимировна"},{"$f":"$O$14","v":"СОШ №15"}]
[15,"Кречетова","Татьяна","Романовна","2005-10-06","ж","нет",9,9,35,40,"Победитель","нет","Дмитриченко Нина Алексеевна",{"$f":"$O$14","v":"СОШ №15"}]
[16,"Зарипова ","Алина","Руслановна","2007-01-20","ж","нет",9,9,24,40,"Призер","нет",{"$f":"$N$14","v":"Алексеенкова Наталья Владимировна"},{"$f":"$O$14","v":"СОШ №15"}]
[17,"Цветкова","Эмилия","Александровна","2006-05-02","ж","нет",9,9,16,40,"участник","нет","Алексеенкова Наталья Владимировна","СОШ №15"]
[18,"Курлина","Дарья","Николаевна","2005-04-22","ж","нет",10,{"$f":"H19","v":10},71,100,"Победитель","нет",{"$f":"N13","v":"Алексеенкова Наталья Владимировна"},{"$f":"O15","v":"СОШ №15"}]
[19,"Соловьева ","Арина","Алексеевна","2004-12-08","ж","нет",10,{"$f":"H20","v":10},54,100,"Призер","нет",{"$f":"N15","v":"Алексеенкова Наталья Владимировна"},"СОШ №15"]
[20,"Гильмуллина ","Диляра","Марселевна","2005-12-13","ж","нет",10,10,46,100,"участник","нет",{"$f":"N14","v":"Алексеенкова Наталья Владимировна"},{"$f":"O16","v":"СОШ №15"}]
[21,"Кашапова","Илюза","Линаровна","2004-02-11","ж","нет",11,11,53,100,"призер ","нет","Игнатьева Любовь Ивановна",{"$f":"O19","v":"СОШ №15"}]
[22,"Широбоков","Никита","Данилович","2004-03-15","м","нет",11,11,34,100,"участник","нет","Игнатьева Любовь Ивановна","СОШ №15"]